fUST/lending_fUST_20251004
["ID","MTS","AMOUNT","RATE_DAILY","PERIOD"]
[389100173,1759577539860,-500.0,0.00019214,2]
[389100174,1759577539889,-1716.14,0.00019214,2]
[389100175,1759577539915,-725.14,0.00019214,2]
[389100176,1759577539942,-500.0,0.00019214,2]
[389100177,1759577539970,-232.7,0.00019214,2]
[389100178,1759577545762,-491.8156685,0.00019213,2]
[389100179,1759577545788,-556.12,0.00019213,2]
[389100180,1759577545817,-1200.0,0.00019213,2]
[389100181,1759577545845,-1652.05,0.00019214,2]
[389100182,1759577545872,-963.31,0.00019214,2]
[389100183,1759577547793,-500.0,0.00019213,2]
[389100184,1759577547830,-500.0,0.00019214,2]
[389100185,1759577547869,-500.0,0.00019214,2]
[389100186,1759577547904,-858.66,0.00019214,2]
[389100187,1759577547933,-500.0,0.00019214,2]
[389100188,1759577547971,-942.7,0.00019214,2]
[389100189,1759577548002,-500.0,0.00019214,2]
[389100190,1759577548037,-391.75,0.00019214,2]
[389100191,1759577549800,-500.0,0.00019213,2]
[389100192,1759577549830,-613.79,0.00019214,2]
[389100193,1759577549859,-500.0,0.00019214,2]
[389100194,1759577549890,-500.0,0.00019214,2]
[389100195,1759577549920,-1253.3,0.00019214,2]
[389100196,1759577549950,-515.91,0.00019214,2]
[389100197,1759577549980,-1091.92,0.00019214,2]
[389100198,1759577550130,-989.27,0.00019214,2]
[389100199,1759577550157,-2329.86,0.00019214,2]
[389100200,1759577550184,-721.82,0.00019214,2]
[389100201,1759577550558,-500.0,0.00019214,2]
[389100202,1759577550587,-418.11,0.00019214,2]
[389100203,1759577551967,-500.0,0.00019213,2]
[389100204,1759577551996,-81.89,0.00019214,2]
[389100205,1759577552024,-753.57,0.00019214,2]
[389100206,1759577552051,-500.0,0.00019214,2]
[389100207,1759577552078,-500.0,0.00019214,2]
[389100208,1759577552106,-1159.09,0.00019214,2]
[389100209,1759577552131,-500.0,0.00019214,2]
[389100210,1759577552157,-549.16,0.00019214,2]
[389100211,1759577553863,-2863.36,0.00019214,2]
[389100212,1759577553890,-500.0,0.00019214,2]
[389100213,1759577553918,-500.0,0.00019214,2]
[389100214,1759577553945,-1067.36,0.00019214,2]
[389100215,1759577555870,-500.0,0.00019214,2]
[389100216,1759577555897,-500.0,0.00019214,2]
[389100217,1759577555924,-500.0,0.00019214,2]
[389100218,1759577555952,-500.0,0.00019214,2]
[389100219,1759577555980,-500.0,0.00019214,2]
[389100220,1759577556007,-721.45,0.00019214,2]
[389100221,1759577556034,-573.2,0.00019214,2]
[389100222,1759577556061,-921.72,0.00019214,2]
[389100223,1759577556087,-67.27,0.00019214,2]
[389100224,1759577556196,-432.73,0.00019214,2]
[389100225,1759577556224,-500.0,0.00019214,2]
[389100226,1759577556251,-500.0,0.00019214,2]
[389100227,1759577556279,-500.0,0.00019214,2]
[389100228,1759577556306,-2317.65,0.00019214,2]
[389100229,1759577556334,-500.0,0.00019214,2]
[389100230,1759577557871,-500.0,0.00019213,2]
[389100231,1759577557899,-500.0,0.00019214,2]
[389100232,1759577557926,-500.0,0.00019214,2]
[389100233,1759577557953,-678.5,0.00019214,2]
[389100234,1759577557981,-500.0,0.00019214,2]
[389100236,1759577559886,-4413.83,0.00019214,2]
[389100252,1759577661065,-5000.0,0.00018831,2]
[389100254,1759577664811,-932.1835165,0.00018928,2]
[389100255,1759577664840,-3725.00533192,0.00018928,2]
[389100256,1759577666858,-5000.0,0.00018739,2]
[389100261,1759577685125,-2566.95582813,0.00019021,2]
[389100262,1759577685152,-1023.76112241,0.00019114,2]
[389100263,1759577685180,-300.0,0.00019212,2]
[389100264,1759577685208,-735.72,0.00019213,2]
[389100265,1759577685235,-247.13609892,0.00019213,2]
[389100266,1759577685386,-252.86390108,0.00019213,2]
[389100267,1759577685414,-779.84,0.00019213,2]
[389100268,1759577685646,-500.0,0.00019213,2]
[389100269,1759577685676,-976.89,0.00019213,2]
[389100270,1759577685705,-500.0,0.00019213,2]
[389100271,1759577685733,-500.0,0.00019213,2]
[389100272,1759577685761,-881.94,0.00019213,2]
[389100273,1759577685787,-170.81586696,0.00019213,2]
[389100274,1759577685816,-87.02046392,0.00019213,2]
[389100275,1759577686988,-701.26953608,0.00019213,2]
[389100276,1759577687016,-500.0,0.00019213,2]
[389100277,1759577687043,-500.0,0.00019213,2]
[389100278,1759577687073,-1304.51,0.00019213,2]
[389100279,1759577687103,-500.0,0.00019213,2]
[389100280,1759577687130,-500.0,0.00019213,2]
[389100281,1759577687157,-500.0,0.00019213,2]
[389100282,1759577687184,-456.18092784,0.00019213,2]
[389100283,1759577687310,-76.08907216,0.00019213,2]
[389100284,1759577687337,-500.0,0.00019213,2]
[389100285,1759577687366,-1257.65,0.00019213,2]
[389100286,1759577687395,-1836.09,0.00019213,2]
[389100287,1759577687425,-500.0,0.00019213,2]
[389100288,1759577687454,-500.0,0.00019213,2]
[389100289,1759577687481,-160.35185568,0.00019213,2]
[389100290,1759577691030,-4341.02976396,0.00019021,2]
[389100291,1759577691060,-339.64814432,0.00019213,2]
[389100292,1759577691092,-4.20418344,0.00019213,2]
[389100293,1759577691362,-630.24581656,0.00019213,2]
[389100294,1759577691390,-725.97,0.00019213,2]
[389100295,1759577691418,-445.84082164,0.00019213,2]
[389100296,1759577691447,-511.85530165,0.00019213,2]
[389100297,1759577691476,-1030.12,0.00019213,2]
[389100298,1759577691503,-500.0,0.00019213,2]
[389100299,1759577691532,-500.0,0.00019213,2]
[389100300,1759577693051,-3934.68,0.00019213,2]
[389100301,1759577693078,-500.0,0.00019213,2]
[389100302,1759577693107,-500.0,0.00019213,2]
[389100303,1759577695200,-500.0,0.00019213,2]
[389100304,1759577695228,-1005.87,0.00019213,2]
[389100305,1759577695259,-500.0,0.00019213,2]
[389100306,1759577695288,-2921.94,0.00019213,2]
[389100307,1759577695422,-144.39,0.00019213,2]
[389100308,1759577695453,-1146.45,0.00019213,2]
[389100309,1759577695483,-500.0,0.00019213,2]
[389100310,1759577695510,-500.0,0.00019213,2]
[389100311,1759577695539,-500.0,0.00019213,2]
[389100312,1759577695571,-500.0,0.00019213,2]
[389100313,1759577695599,-500.0,0.00019213,2]
[389100314,1759577695626,-500.0,0.00019213,2]
[389100315,1759577695653,-500.0,0.00019213,2]
[389100316,1759577695793,-500.0,0.00019213,2]
[389100317,1759577695820,-500.0,0.00019213,2]
[389100318,1759577695846,-500.0,0.00019213,2]
[389100319,1759577696045,-500.0,0.00019213,2]
[389100320,1759577696072,-500.0,0.00019213,2]
[389100321,1759577696099,-500.0,0.00019213,2]
[389100322,1759577696126,-500.0,0.00019213,2]
[389100323,1759577696153,-207.08809498,0.00019213,2]
[389100324,1759577696181,-500.0,0.00019213,2]
[389100325,1759577696208,-500.0,0.00019213,2]
[389100326,1759577696235,-85.83381004,0.00019213,2]
[389100327,1759577696350,-414.16618996,0.00019213,2]
[389100328,1759577696376,-500.0,0.00019213,2]
[389100329,1759577696402,-1439.53,0.00019213,2]
[389100330,1759577696428,-500.0,0.00019213,2]
[389100331,1759577696454,-500.0,0.00019213,2]
[389100332,1759577696480,-500.0,0.00019213,2]
[389100333,1759577696506,-262.60563529,0.00019213,2]
[389100334,1759577696533,-202.80911624,0.00019213,2]
[389100335,1759577696562,-297.19088376,0.00019213,2]
[389100336,1759577696588,-267.4063495,0.00019213,2]
[389100337,1759577696728,-232.5936505,0.00019213,2]
[389100338,1759577696759,-500.0,0.00019213,2]
[389100339,1759577696787,-500.0,0.00019213,2]
[389100340,1759577696816,-237.39436471,0.00019213,2]
[389100341,1759577696843,-619.6030381,0.00019213,2]
[389100342,1759577696872,-237.39436471,0.00019213,2]
[389100343,1759577696900,-381.15904883,0.00019213,2]
[389100344,1759577696930,-501.89,0.00019213,2]
[389100345,1759577696957,-500.0,0.00019213,2]
[389100346,1759577696984,-500.0,0.00019213,2]
[389100347,1759577697009,-435.7116071,0.00019213,2]
[389100348,1759577697063,-1172.35,0.00019214,2]
[389100349,1759577697089,-500.0,0.00019214,2]
[389100350,1759577697116,-609.17,0.00019214,2]
[389100351,1759577697144,-1005.43,0.00019214,2]
[389100352,1759577697171,-500.0,0.00019214,2]
[389100353,1759577697199,-500.0,0.00019214,2]
[389100354,1759577697226,-500.0,0.00019214,2]
[389100355,1759577701134,-636.65,0.00019213,2]
[389100356,1759577701163,-1373.22,0.00019213,2]
[389100357,1759577701191,-529.04,0.00019213,2]
[389100358,1759577701219,-500.0,0.00019213,2]
[389100359,1759577701249,-1676.21,0.00019214,2]
[389100360,1759577701402,-500.0,0.00019213,2]
[389100361,1759577701430,-569.77,0.00019214,2]
[389100362,1759577701457,-500.0,0.00019214,2]
[389100363,1759577701484,-500.0,0.00019214,2]
[389100364,1759577701510,-500.0,0.00019214,2]
[389100365,1759577701540,-500.0,0.00019214,2]
[389100366,1759577701576,-500.0,0.00019214,2]
[389100367,1759577701609,-500.0,0.00019214,2]
[389100368,1759577701648,-712.86,0.00019214,2]
[389100369,1759577701716,-434.75,0.00019214,2]
[389100370,1759577701744,-1269.56,0.00019214,2]
[389100371,1759577701772,-426.29412645,0.00019214,2]
[389100372,1759577701799,-500.0,0.00019214,2]
[389100373,1759577701828,-1029.96,0.00019214,2]
[389100374,1759577701857,-500.0,0.00019214,2]
[389100375,1759577701887,-520.0,0.00019214,3]
[389100376,1759577702046,-1168.09,0.00019214,2]
[389100377,1759577702076,-500.0,0.00019214,2]
[389100378,1759577702108,-1095.75,0.00019214,2]
[389100379,1759577702138,-975.55,0.00019214,2]
[389100380,1759577702369,-500.0,0.00019214,2]
[389100381,1759577702397,-250.84,0.00019214,2]
[389100382,1759577705197,-300.0,0.00019213,2]
[389100383,1759577705226,-500.0,0.00019213,2]
[389100384,1759577705254,-300.0,0.00019213,2]
[389100385,1759577705283,-300.0,0.00019213,2]
[389100386,1759577705311,-1019.55,0.00019214,2]
[389100387,1759577705337,-500.0,0.00019214,2]
[389100388,1759577705365,-838.05,0.00019214,2]
[389100389,1759577705392,-500.0,0.00019214,2]
[389100390,1759577705421,-500.0,0.00019214,2]
[389100391,1759577705520,-3335.61,0.00019214,2]
[389100392,1759577705549,-500.0,0.00019214,2]
[389100393,1759577705583,-500.0,0.00019214,2]
[389100394,1759577705726,-2150.48,0.00019214,2]
[389100395,1759577705754,-500.0,0.00019214,2]
[389100396,1759577705783,-1151.6,0.00019214,2]
[389100397,1759577706138,-500.0,0.00019213,2]
[389100398,1759577706168,-1722.33,0.00019213,2]
[389100399,1759577706196,-1200.0,0.00019213,2]
[389100400,1759577706225,-759.5,0.00019214,2]
[389100401,1759577706391,-1636.35,0.00019214,2]
[389100402,1759577706417,-500.0,0.00019214,2]
[389100403,1759577706475,-500.0,0.00019213,2]
[389100404,1759577706503,-689.28,0.00019214,2]
[389100405,1759577707541,-7413.81158606,0.00019214,2]
[389100406,1759577707683,-2586.19841394,0.00019214,2]
[389100407,1759577707721,-500.0,0.00019213,2]
[389100408,1759577707730,-4327.61317212,0.00019214,2]
[389100409,1759577707838,-3293.83682788,0.00019214,2]
[389100410,1759577707866,-500.0,0.00019214,2]
[389100411,1759577707895,-500.0,0.00019214,2]
[389100412,1759577707924,-451.63634424,0.00019214,2]
[389100413,1759577707996,-509.06365576,0.00019214,2]
[389100414,1759577717261,-5000.0,0.00019021,2]
[389100415,1759577717348,-0.01,0.00019213,2]
[389100416,1759577717432,-499.99,0.00019213,2]
[389100417,1759577717461,-500.0,0.00019213,2]
[389100418,1759577717492,-500.0,0.00019213,2]
[389100419,1759577717522,-1333.92,0.00019213,2]
[389100420,1759577717550,-548.89,0.00019213,2]
[389100421,1759577717581,-500.0,0.00019213,2]
[389100422,1759577717608,-598.0,0.00019213,2]
[389100423,1759577717636,-500.0,0.00019214,2]
[389100424,1759577717909,-38.41,0.00019213,2]
[389100425,1759577719262,-461.59,0.00019213,2]
[389100426,1759577719292,-500.0,0.00019213,2]
[389100427,1759577719318,-500.0,0.00019213,2]
[389100428,1759577719346,-500.0,0.00019213,2]
[389100429,1759577719374,-500.0,0.00019213,2]
[389100430,1759577719402,-500.0,0.00019213,2]
[389100431,1759577719430,-500.0,0.00019213,2]
[389100432,1759577719459,-493.12646927,0.00019213,2]
[389100433,1759577719672,-282.75322468,0.00019213,2]
[389100434,1759577719701,-500.0,0.00019213,2]
[389100435,1759577719730,-25.0706121,0.00019213,2]
[389100436,1759577719953,-474.9293879,0.00019213,2]
[389100437,1759577721282,-500.0,0.00019213,2]
[389100438,1759577721312,-500.0,0.00019213,2]
[389100439,1759577721340,-500.0,0.00019213,2]
[389100440,1759577721369,-500.0,0.00019213,2]
[389100441,1759577721397,-500.0,0.00019213,2]
[389100442,1759577721425,-500.0,0.00019213,2]
[389100443,1759577721463,-158.62788766,0.00019213,2]
[389100444,1759577721492,-500.0,0.00019213,2]
[389100445,1759577721519,-500.0,0.00019213,2]
[389100446,1759577721549,-500.0,0.00019213,2]
[389100447,1759577721589,-182.75422468,0.00019214,2]
[389100448,1759577721799,-317.24577532,0.00019214,2]
[389100449,1759577723436,-723.05,0.00019213,2]
[389100450,1759577723466,-2231.15,0.00019214,2]
[389100451,1759577723494,-500.0,0.00019214,2]
[389100452,1759577723521,-500.0,0.00019214,2]
[389100453,1759577723549,-935.49,0.00019214,2]
[389100454,1759577723671,-589.32323707,0.00019214,2]
[389100455,1759577723701,-500.0,0.00019214,2]
[389100456,1759577723729,-500.0,0.00019214,2]
[389100457,1759577723758,-500.0,0.00019214,2]
[389100458,1759577723786,-336.82816364,0.00019214,2]
[389100459,1759577723816,-1680.6,0.00019214,2]
[389100460,1759577723844,-500.0,0.00019214,2]
[389100461,1759577723874,-144.32719858,0.00019214,2]
[389100462,1759577724123,-76.30280142,0.00019214,2]
[389100463,1759577724137,-421.55,0.00019214,2]
[389100464,1759577724146,-220.63,0.00019214,2]
[389100465,1759577931156,5000.0,0.00018033,2]
[389100466,1759577953185,5000.0,0.00018033,2]
[389100467,1759577975547,2181.18819591,0.00018033,2]
[389100472,1759578048410,-666.0,0.00018213,2]
[389100473,1759578048439,-3907.42687668,0.00018643,2]
[389100474,1759578048475,-853.15624664,0.00018643,2]
[389100475,1759578048771,-300.0,0.0001883,2]
[389100476,1759578048800,-1200.0,0.0001883,2]
[389100477,1759578048828,-2000.01,0.00018831,2]
[389100478,1759578048881,-2999.99,0.00018831,2]
[389100479,1759578048961,-490.69,0.00019203,3]
[389100480,1759578048992,-245.35,0.00019203,3]
[389100481,1759578049022,-204.46,0.00019203,3]
[389100482,1759578049055,-613.39,0.00019203,3]
[389100483,1759578049085,-305.23768183,0.0001921,2]
[389100484,1759578049116,-1200.0,0.00019212,2]
[389100485,1759578049148,-274.61854863,0.00019212,2]
[389100486,1759578049176,-500.0,0.00019212,2]
[389100487,1759578049208,-500.0,0.00019212,2]
[389100488,1759578049237,-566.02815063,0.00019212,2]
[389100489,1759578049333,-454.03098629,0.00019212,2]
[389100490,1759578049362,-500.0,0.00019212,2]
[389100491,1759578049391,-500.0,0.00019212,2]
[389100492,1759578049423,-500.0,0.00019212,2]
[389100493,1759578049718,-500.0,0.00019212,2]
[389100494,1759578049751,-500.0,0.00019212,2]
[389100495,1759578049780,-500.0,0.00019212,2]
[389100496,1759578049810,-500.0,0.00019212,2]
[389100497,1759578049837,-320.04445883,0.00019212,2]
[389100498,1759578049864,-329.18328303,0.00019212,2]
[389100499,1759578049892,-293.4925437,0.00019212,2]
[389100500,1759578050209,-206.5074563,0.00019212,2]
[389100501,1759578050218,-293.4925437,0.00019212,2]
[389100502,1759578050287,-206.5074563,0.00019212,2]
[389100503,1759578050314,-500.0,0.00019212,2]
[389100504,1759578050343,-500.0,0.00019212,2]
[389100505,1759578050370,-440.0,0.00019212,2]
[389100506,1759578050398,-500.0,0.00019212,2]
[389100507,1759578050427,-500.0,0.00019212,2]
[389100508,1759578050455,-500.0,0.00019212,2]
[389100509,1759578050483,-500.0,0.00019212,2]
[389100510,1759578050510,-500.0,0.00019212,2]
[389100511,1759578050538,-500.0,0.00019212,2]
[389100512,1759578050566,-206.9950874,0.00019212,2]
[389100513,1759578050718,-293.0049126,0.00019212,2]
[389100514,1759578052354,-500.0,0.00019212,2]
[389100515,1759578052386,-500.0,0.00019212,2]
[389100516,1759578052418,-337.35678573,0.00019212,2]
[389100517,1759578052446,-500.0,0.00019212,2]
[389100518,1759578052474,-500.0,0.00019212,2]
[389100519,1759578052503,-500.0,0.00019212,2]
[389100520,1759578052536,-500.0,0.00019212,2]
[389100521,1759578052563,-500.0,0.00019212,2]
[389100522,1759578052592,-378.66457881,0.00019212,2]
[389100523,1759578052619,-500.0,0.00019212,2]
[389100524,1759578052645,-67.96727092,0.00019212,2]
[389100525,1759578052840,-432.03272908,0.00019212,2]
[389100526,1759578052868,-500.0,0.00019212,2]
[389100527,1759578052896,-500.0,0.00019212,2]
[389100528,1759578052924,-155.0,0.00019212,2]
[389100529,1759578052950,-499.99999999,0.00019212,2]
[389100530,1759578053247,-432.03272908,0.00019213,2]
[389100531,1759578053267,-5825.94454186,0.00019213,2]
[389100532,1759578053285,-10000.01,0.00019213,2]
[389100533,1759578053299,-10000.01,0.00019213,2]
[389100534,1759578054810,-5000.0,0.0001902,2]
[389100535,1759578054919,-0.01,0.00019213,2]
[389100536,1759578054937,-10000.01,0.00019213,2]
[389100537,1759578054967,-3741.97272906,0.00019213,2]
[389100538,1759578054995,-500.0,0.00019213,2]
[389100539,1759578055023,-500.0,0.00019213,2]
[389100540,1759578055050,-190.34401672,0.00019213,2]
[389100541,1759578055115,-135.37650844,0.00019213,2]
[389100542,1759578056363,-500.0,0.00019213,2]
[389100543,1759578056391,-500.0,0.00019213,2]
[389100544,1759578056417,-840.25,0.00019213,2]
[389100545,1759578056444,-500.0,0.00019213,2]
[389100546,1759578056472,-830.99,0.00019213,2]
[389100547,1759578056500,-769.52,0.00019213,2]
[389100548,1759578056527,-500.0,0.00019213,2]
[389100549,1759578056557,-500.0,0.00019213,2]
[389100550,1759578056647,-1085.1,0.00019213,2]
[389100551,1759578056673,-500.0,0.00019213,2]
[389100552,1759578056701,-500.0,0.00019213,2]
[389100553,1759578056731,-600.88,0.00019213,2]
[389100554,1759578056760,-500.0,0.00019213,2]
[389100555,1759578056787,-500.0,0.00019213,2]
[389100556,1759578056813,-500.0,0.00019213,2]
[389100557,1759578056843,-668.47,0.00019213,2]
[389100558,1759578056970,-291.11,0.00019213,2]
[389100559,1759578056995,-500.0,0.00019213,2]
[389100560,1759578057023,-500.0,0.00019213,2]
[389100561,1759578057049,-500.0,0.00019213,2]
[389100562,1759578057076,-500.0,0.00019213,2]
[389100563,1759578057103,-500.0,0.00019213,2]
[389100564,1759578057129,-806.95,0.00019213,2]
[389100565,1759578057155,-376.06112681,0.00019213,2]
[389100566,1759578057184,-748.25,0.00019213,2]
[389100567,1759578057215,-55.26774638,0.00019213,2]
[389100568,1759578057384,-444.73225362,0.00019213,2]
[389100569,1759578057411,-767.47,0.00019213,2]
[389100570,1759578057438,-500.0,0.00019213,2]
[389100571,1759578057465,-705.06,0.00019213,2]
[389100572,1759578057494,-500.0,0.00019213,2]
[389100573,1759578057524,-500.0,0.00019213,2]
[389100574,1759578057553,-500.0,0.00019213,2]
[389100575,1759578057579,-500.0,0.00019213,2]
[389100576,1759578057606,-500.0,0.00019213,2]
[389100577,1759578058175,-419.25112681,0.00019213,2]
[389100578,1759578058214,-80.74887319,0.00019213,2]
[389100579,1759578058223,-419.25112681,0.00019213,2]
[389100580,1759578058236,-165.48549276,0.00019213,2]
[389100581,1759578058443,-43.95338043,0.00019213,2]
[389100582,1759578058470,-936.19,0.00019213,2]
[389100583,1759578058496,-500.0,0.00019213,2]
[389100584,1759578058523,-1149.41,0.00019213,2]
[389100585,1759578058549,-500.0,0.00019213,2]
[389100586,1759578058576,-845.19,0.00019213,2]
[389100587,1759578058603,-500.0,0.00019213,2]
[389100588,1759578058781,-40.42323914,0.00019213,2]
[389100589,1759578058892,-969.67676086,0.00019213,2]
[389100590,1759578058918,-500.0,0.00019213,2]
[389100591,1759578058943,-307.90295672,0.00019213,2]
[389100592,1759578058969,-185.54926364,0.00019213,2]
[389100593,1759578058995,-565.51,0.00019213,2]
[389100594,1759578059023,-500.0,0.00019213,2]
[389100595,1759578059049,-257.36122674,0.00019213,2]
[389100596,1759578059075,-542.49,0.00019213,2]
[389100597,1759578059101,-844.0,0.00019213,2]
[389100598,1759578059182,-1294.07,0.00019213,2]
[389100599,1759578059210,-500.0,0.00019213,2]
[389100600,1759578059237,-500.0,0.00019213,2]
[389100601,1759578059264,-500.0,0.00019213,2]
[389100602,1759578059292,-1165.05,0.00019213,2]
[389100603,1759578059319,-500.0,0.00019213,2]
[389100604,1759578059345,-500.0,0.00019213,2]
[389100605,1759578059420,-500.0,0.00019213,2]
[389100606,1759578059447,-500.0,0.00019213,2]
[389100607,1759578059474,-500.0,0.00019213,2]
[389100608,1759578059499,-481.79417268,0.00019213,2]
[389100609,1759578059525,-500.0,0.00019213,2]
[389100610,1759578059551,-500.0,0.00019213,2]
[389100611,1759578059577,-500.0,0.00019213,2]
[389100612,1759578059883,-1654.12072118,0.00019113,2]
[389100613,1759578059910,-2690.58855764,0.00019213,2]
[389100614,1759578060392,-429.24072876,0.00019213,2]
[389100615,1759578060415,-881.3507136,0.00019213,2]
[389100616,1759578060425,-500.0,0.00019213,2]
[389100617,1759578060435,-272.77000758,0.00019213,2]
[389100618,1759578060452,-227.22999242,0.00019213,2]
[389100619,1759578060463,-1197.11,0.00019213,2]
[389100620,1759578060472,-849.87,0.00019213,2]
[389100621,1759578060482,-507.85,0.00019213,2]
[389100622,1759578060492,-500.0,0.00019213,2]
[389100623,1759578060502,-500.0,0.00019213,2]
[389100624,1759578060513,-219.12000758,0.00019213,2]
[389100625,1759578064447,-900.38999242,0.00019213,2]
[389100626,1759578064474,-500.0,0.00019213,2]
[389100627,1759578064509,-500.0,0.00019213,2]
[389100628,1759578064543,-500.0,0.00019213,2]
[389100629,1759578064573,-500.0,0.00019213,2]
[389100630,1759578064600,-500.0,0.00019213,2]
[389100631,1759578064628,-564.16,0.00019213,2]
[389100632,1759578065197,-2262.75,0.00019213,2]
[389100633,1759578065225,-500.0,0.00019213,2]
[389100634,1759578065253,-500.0,0.00019213,2]
[389100635,1759578065288,-345.17,0.00019213,2]
[389100636,1759578065390,-2784.17,0.00019213,2]
[389100637,1759578065418,-500.0,0.00019213,2]
[389100638,1759578065447,-920.42,0.00019213,2]
[389100639,1759578065475,-500.0,0.00019213,2]
[389100640,1759578065503,-128.52719453,0.00019213,2]
[389100641,1759578065563,-333.77561094,0.00019213,2]
[389100642,1759578065593,-500.0,0.00019213,2]
[389100643,1759578065621,-500.0,0.00019213,2]
[389100644,1759578065653,-500.0,0.00019213,2]
[389100645,1759578065680,-769.29,0.00019213,2]
[389100646,1759578065708,-500.0,0.00019213,2]
[389100647,1759578065739,-500.0,0.00019213,2]
[389100648,1759578065767,-500.0,0.00019213,2]
[389100649,1759578065795,-457.88221471,0.00019213,2]
[389100650,1759578065825,-416.56406676,0.00019213,2]
[389100651,1759578066269,-44.98621518,0.00019213,2]
[389100652,1759578066278,-189.03032398,0.00019213,2]
[389100653,1759578066296,-310.96967602,0.00019213,2]
[389100654,1759578066305,-22.80593492,0.00019213,2]
[389100655,1759578066318,-477.19406508,0.00019213,2]
[389100656,1759578066327,-22.80593492,0.00019213,2]
[389100657,1759578066345,-477.19406508,0.00019213,2]
[389100658,1759578066354,-22.80593492,0.00019213,2]
[389100659,1759578066368,-500.0,0.00019213,2]
[389100660,1759578066385,-505.07406508,0.00019213,2]
[389100661,1759578066395,-264.21593492,0.00019213,2]
[389100662,1759578066412,-235.78406508,0.00019213,2]
[389100663,1759578066421,-264.21593492,0.00019213,2]
[389100664,1759578066436,-500.0,0.00019213,2]
[389100665,1759578066450,-500.0,0.00019213,2]
[389100666,1759578066464,-457.88221471,0.00019213,2]
[389100667,1759578066478,-21.14185037,0.00019213,2]
[389100668,1759578066487,-440.40843157,0.00019213,2]
[389100669,1759578117052,-5000.0,0.00018831,2]
[389100670,1759578117088,-0.01,0.00019021,2]
[389100671,1759578121224,-4629.34928884,0.00019021,2]
[389100672,1759578121252,-241.31142232,0.00019212,2]
[389100673,1759578121290,-258.68857768,0.00019212,2]
[389100691,1759578323872,5000.0,0.00018033,2]
[389100698,1759578346407,5000.0,0.00018033,2]
[389100699,1759578369410,4494.40058175,0.00018033,2]
[389100706,1759578558057,-4454.8380735,0.00018095,2]
[389100707,1759578558084,-1090.333853,0.00018095,2]
[389100708,1759578558318,-1856.853054,0.00018211,2]
[389100709,1759578558345,-277.032022,0.00018213,2]
[389100710,1759578558370,-1097.42634793,0.00018396,2]
[389100711,1759578558397,-300.0,0.00018758,2]
[389100712,1759578558423,-1200.0,0.0001876,2]
[389100713,1759578558503,-537.38715214,0.00018763,2]
[389100714,1759578559019,5000.0,0.00018033,2]
[389100715,1759578560084,-10000.01,0.00018763,2]
[389100717,1759578561971,-1489.24238935,0.00018763,2]
[389100718,1759578561998,-1097.42634793,0.00018802,2]
[389100719,1759578562296,-1097.42634793,0.0001906,2]
[389100720,1759578562324,-1200.0,0.00019112,2]
[389100721,1759578562455,-231.81982958,0.00019113,2]
[389100722,1759578567987,-10000.01,0.00019113,2]
[389100723,1759578568225,-4301.47008428,0.00019113,2]
[389100724,1759578568263,-1397.06983144,0.00019113,2]
[389100785,1759578635389,-1025.37522521,0.00018883,2]
[389100810,1759578638052,-26324.39622739,0.00018883,2]
[389100811,1759578638063,-5000.0,0.00018922,2]